Workbook

Sheet Notes Balance
A1: TOTAL NOTE BALANCES
B2: Total Notes | C2: Class A Notes | D2: Class A2 Notes | E2: Class B Notes | F2: Class C Notes
A3: Initial Invested Amount | B3: =SUM(C3:G3) -> 507600000 | C3: 483300000 | D3: 0 | E3: 13500000 | F3: 10800000
A4: Invested Amount as at Previous Payment Date: 17 May 2021 | B4: =SUM(C4:G4) -> 507600000 | C4: 483300000 | D4: 0 | E4: 13500000 | F4: 10800000
A5: Stated Amount as at Previous Payment Date: 17 May 2021 | B5: 507600000 | C5: 483300000 | D5: 0 | E5: 13500000 | F5: 10800000
A6: Principal Payments to Noteholders on Payment Date | B6: 68701598.23 | C6: 68701598.23 | D6: 0 | E6: 0 | F6: 0
A7: Gross Aggregate Charge-Offs | B7: 0 | C7: 0 | D7: 0 | E7: 0 | F7: 0
A8: Gross Aggregate Reinstatements of charge-offs | B8: 0 | C8: 0 | D8: 0 | E8: 0 | F8: 0
A9: Aggregate Charge-Offs for this Collection Period | B9: 0 | C9: 0 | D9: 0 | E9: 0 | F9: 0
A10: Reinstatements relating to Charge-offs that have occurred this Collection Period | B10: =SUM(C10:G10) -> 0 | C10: 0 | D10: 0 | E10: 0 | F10: 0
A11: Aggregate Carry Over Charge-offs not previously reinstated | B11: 0 | C11: 0 | D11: 0 | E11: 0 | F11: 0
A12: Reinstatements of Carry Over Charge-offs not previously reinstated | B12: 0 | C12: 0 | D12: 0 | E12: 0 | F12: 0
A13: Aggregate Charge-Offs not reinstated and to be carried over to next period | B13: 0 | C13: 0 | D13: 0 | E13: 0 | F13: 0
A14: Invested Amount as at Payment Date: 16 August 2021 | B14: 438898401.8 | C14: 414598401.8 | D14: 0 | E14: 13500000 | F14: 10800000
A15: Stated Amount as at Payment Date: 16 August 2021 | B15: 438898401.8 | C15: 414598401.8 | D15: 0 | E15: 13500000 | F15: 10800000
A16: Bond Factor at Payment Date: 16 August 2021 | C16: 0.8578489588 | D16: 0 | E16: 1 | F16: 1
A17: Coupon Margin | C17: 0.007 | D17: 0 | E17: 0 | F17: 0
A18: Coupon Rate (3 month BBSW + margin) | C18: 0.007394 | D18: 0.000394 | E18: 0.000394 | F18: 0.000394
A19: Days in Coupon Period | C19: 91 | D19: 91 | E19: 91 | F19: 91
A20: Coupon Entitlement to be paid out on the current Payment Date: 16 August 2021 | C20: 890932.43 | D20: 0 | E20: 1326.11 | F20: 1060.89
A23: TOTAL NOTE BALANCES
B24: Total Notes | C24: Class A Notes | D24: Class A2 Notes | E24: Class B Notes | F24: Class C Notes
A25: Initial Invested Amount | B25: =+SUM(C25:F25) -> 507600000 | C25: 483300000 | D25: 0 | E25: 13500000 | F25: 10800000
A26: Invested Amount as at Previous Payment Date: 16 August 2021 | B26: =+SUM(C26:F26) -> 438898401.8 | C26: 414598401.8 | D26: 0 | E26: 13500000 | F26: 10800000
A27: Stated Amount as at Previous Payment Date: 16 August 2021 | B27: 438898401.8 | C27: 414598401.8 | D27: 0 | E27: 13500000 | F27: 10800000
A28: Principal Payments to Noteholders on Payment Date | B28: 28325836.69 | C28: 28325836.69 | D28: 0 | E28: 0 | F28: 0
A29: Gross Aggregate Charge-Offs | B29: 0 | C29: 0 | D29: 0 | E29: 0 | F29: 0
A30: Gross Aggregate Reinstatements of charge-offs | B30: 0 | C30: 0 | D30: 0 | E30: 0 | F30: 0
A31: Aggregate Charge-Offs for this Collection Period | B31: 0 | C31: 0 | D31: 0 | E31: 0 | F31: 0
A32: Reinstatements relating to Charge-offs that have occurred this Collection Period | B32: 0 | C32: 0 | D32: 0 | E32: 0 | F32: 0
A33: Aggregate Carry Over Charge-offs not previously reinstated | B33: 0 | C33: 0 | D33: 0 | E33: 0 | F33: 0
A34: Reinstatements of Carry Over Charge-offs not previously reinstated | B34: 0 | C34: 0 | D34: 0 | E34: 0 | F34: 0
A35: Aggregate Charge-Offs not reinstated and to be carried over to next period | B35: 0 | C35: 0 | D35: 0 | E35: 0 | F35: 0
A36: Invested Amount as at Payment Date: 16 November 2021 | B36: 410572565.1 | C36: 386272565.1 | D36: 0 | E36: 13500000 | F36: 10800000
A37: Stated Amount as at Payment Date: 16 November 2021 | B37: 410572565.1 | C37: 386272565.1 | D37: 0 | E37: 13500000 | F37: 10800000
A38: Bond Factor at Payment Date: 16 November 2021 | C38: 0.7992397374 | D38: 0 | E38: 1 | F38: 1
A39: Coupon Margin | C39: 0.007 | D39: 0 | E39: 0 | F39: 0
A40: Coupon Rate (3 month BBSW + margin) | C40: 0.007157 | D40: 0.000157 | E40: 0.000157 | F40: 0.000157
A41: Days in Coupon Period | C41: 92 | D41: 92 | E41: 92 | F41: 92
A42: Coupon Entitlement to be paid out on the current Payment Date: 16 November 2021 | C42: 747917.34 | D42: 0 | E42: 534.23 | F42: 427.38

Sheet Cumulative Defaults
A1: Cumulative Defaults & Losses
A3: Month | B3: Gross Losses | C3: Recoveries | D3: Net Losses
A4: 2021-07-01 | B4: =+'Collateral Tables'!I9/540000000 -> 0 | C4: ='Collateral Tables'!I23/540000000 -> 0 | D4: =+B4-C4 -> 0
A5: 2021-10-01 | B5: =+'Collateral Tables'!E9/540000000 -> 0 | C5: =+'Collateral Tables'!E23/540000000 -> 0 | D5: =+B5-C5 -> 0

Sheet Collateral Tables
B1: CNHI CAPITAL AUSTRALIA RECEIVABLES TRUST SERIES 2021-1 (TERM DEAL)
B2: COLLATERAL DATA TABLES
B4: OUTSTANDING RECEIVABLES | E4: 2021-10-31 | I4: 2021-07-31
B6: Opening Balance | E6: ='[1]16 Nov 21'!M163 -> 471298401.8 | I6: 539999974.6
B7: Principal Repayments - Scheduled | E7: =MIN(([2]Sheet1!$B$3+[3]Sheet1!$B$3+[4]Sheet1!$B$3),'[1]16 Nov 21'!H23) -> 21375090.15 | I7: 59422745.44
B8: Principal Repayments - Unscheduled | E8: ='[1]16 Nov 21'!H23-'Collateral Tables'!E7 -> 6950746.54 | I8: 9278827.41
A9: =SUM(E9:I9) -> 0 | B9: Charge-Offs | E9: ='[1]16 Nov 21'!D37 -> 0 | I9: 0
B10: Reinstatements
B11: New Receivables Purchased
B12: Non Cash Change in Receivables
B13: Closing Balance | E13: =E6-E7-E8-E9+E10+E11-E12 -> 442972565.1 | I13: 471298401.8
B15: PORTFOLIO STATISTICS
B17: Summary
B18: Number of contracts | E18: =[5]Summary!$B$4 -> 4503 | I18: 4717
B19: Dollar value of contracts | E19: =[5]Summary!$B$5 -> 442972565.1 | I19: 471298401.8
B20: Number of contracts closed during the Quarter | E20: =[5]Summary!$B$19 -> 214 | I20: 227
B21: Dollar value of contracts closed during the Quarter | E21: =[5]Summary!$B$20 -> 9889285.47 | I21: 15873333.85
A23: =SUM(E23:I23) -> 0 | B23: Dollar Value of Recoveries from Collateral | E23: =[5]Summary!$C$16 -> 0 | I23: 0
A24: =SUM(E24:I24) -> 0 | B24: Dollar Value of Recoveries from Other Sources | E24: 0 | I24: 0
B26: Average Term of Contracts (Months) | E26: =[6]Sheet1!$W$4505 -> 54.7244709 | I26: 54.49159892
B27: Average Term to Maturity (Months) | E27: =[6]Sheet1!$X$4505 -> 37.45208748 | I27: 39.99636753
B28: Average Residual / Balloon Payment * | E28: =[6]Sheet1!$AI$4505 -> 0.04619707525 | I28: 0.04749539452
B29: Average Seasoning (Months) | E29: =E26-E27 -> 17.27238342 | I29: 14.49523139
B30: Average Dollar Value of Individual Assets | E30: =E19/E18 -> 98372.76595 | I30: 99914.86152
B31: Weighted Average Interest Rate | E31: =[6]Sheet1!$AA$4505/100 -> 0.02189098973 | I31: 0.02199590455
B33: Payment in Arrears
A34: 1. 0 - 30 Days | B34: 0 - 30 Days | E34: =IFERROR(VLOOKUP($A34,'[7]Arrears Reporting'!$A$1:$D$8,3,FALSE),0) -> 4496 | F34: =IFERROR(VLOOKUP($A34,'[7]Arrears Reporting'!$A$1:$D$8,2,FALSE),0) -> 110119.21 | G34: =F34/F$50 -> 0.00024859149 | I34: 4712 | J34: 195906.98 | K34: 0.0004156750357
A35: 2. 31 - 60 Days | B35: 31 - 60 Days | E35: =IFERROR(VLOOKUP($A35,'[7]Arrears Reporting'!$A$1:$D$8,3,FALSE),0) -> 5 | F35: =IFERROR(VLOOKUP($A35,'[7]Arrears Reporting'!$A$1:$D$8,2,FALSE),0) -> 253453.4 | G35: 0.0005721650052 | I35: 4 | J35: 147584.37 | K35: 0.0003131442191
A36: 3. 61 - 90 Days | B36: 61 - 90 Days | E36: =IFERROR(VLOOKUP($A36,'[7]Arrears Reporting'!$A$1:$D$8,3,FALSE),0) -> 0 | F36: =IFERROR(VLOOKUP($A36,'[7]Arrears Reporting'!$A$1:$D$8,2,FALSE),0) -> 0 | G36: 0 | I36: 1 | J36: 20086.37 | K36: 4.261921943e-05
A37: 4. 91 - 120 Days | B37: 91 - 120 Days | E37: =IFERROR(VLOOKUP($A37,'[7]Arrears Reporting'!$A$1:$D$8,3,FALSE),0) -> 1 | F37: =IFERROR(VLOOKUP($A37,'[7]Arrears Reporting'!$A$1:$D$8,2,FALSE),0) -> 14297.29 | G37: 3.227579116e-05 | I37: 0 | J37: 0 | K37: 0
A38: 5. 121 - 150 Days | B38: 121 - 150 Days | E38: =IFERROR(VLOOKUP($A38,'[7]Arrears Reporting'!$A$1:$D$8,3,FALSE),0) -> 1 | F38: =IFERROR(VLOOKUP($A38,'[7]Arrears Reporting'!$A$1:$D$8,2,FALSE),0) -> 96096 | G38: 0.0002169344279 | I38: 0 | J38: 0 | K38: 0
A39: 6. 151 - 180 Days | B39: 151 - 180 Days | E39: =IFERROR(VLOOKUP($A39,'[7]Arrears Reporting'!$A$1:$D$8,3,FALSE),0) -> 0 | F39: =IFERROR(VLOOKUP($A39,'[7]Arrears Reporting'!$A$1:$D$8,2,FALSE),0) -> 0 | G39: 0 | I39: 0 | J39: 0 | K39: 0
B40: Total | E40: =SUM(E34:E39) -> 4503 | F40: =SUM(F34:F39) -> 473965.9 | G40: =SUM(G34:G39) -> 0.001069966714 | I40: 4717 | J40: 363577.72 | K40: 0.0007714384743
B41: * Expressed as a % of Aggreg. Rec. closing bal. | F41: > 30 days | G41: =SUM(G35:G39) -> 0.0008213752243 | J41: > 30 days | K41: 0.0003557634386
A43: 0 - 30 Days | B43: Account Balances in Arrears
A44: 1. 0 - 30 Days | B44: 0 - 30 Days | E44: =IFERROR(VLOOKUP($A44,'[7]Arrears Reporting'!$A$1:$D$8,3,FALSE),0) -> 4496 | F44: =IFERROR(VLOOKUP($A44,'[7]Arrears Reporting'!$A$1:$D$8,4,FALSE),0) -> 441358176.3 | G44: =F44/F$50 -> 0.9963555559 | I44: 4712 | J44: 470790435.3 | K44: 0.9989221979
A45: 2. 31 - 60 Days | B45: 31 - 60 Days | E45: =IFERROR(VLOOKUP($A45,'[7]Arrears Reporting'!$A$1:$D$8,3,FALSE),0) -> 5 | F45: =IFERROR(VLOOKUP($A45,'[7]Arrears Reporting'!$A$1:$D$8,4,FALSE),0) -> 1388190.9 | G45: =F45/F$50 -> 0.003133807846 | I45: 4 | J45: 272648.6 | K45: 0.0005785052506
A46: 3. 61 - 90 Days | B46: 61 - 90 Days | E46: =IFERROR(VLOOKUP($A46,'[7]Arrears Reporting'!$A$1:$D$8,3,FALSE),0) -> 0 | F46: =IFERROR(VLOOKUP($A46,'[7]Arrears Reporting'!$A$1:$D$8,4,FALSE),0) -> 0 | G46: 0 | I46: 1 | J46: 235317.83 | K46: 0.0004992968979
A47: 4. 91 - 120 Days | B47: 91 - 120 Days | E47: =IFERROR(VLOOKUP($A47,'[7]Arrears Reporting'!$A$1:$D$8,3,FALSE),0) -> 1 | F47: =IFERROR(VLOOKUP($A47,'[7]Arrears Reporting'!$A$1:$D$8,4,FALSE),0) -> 135254.64 | G47: =F47/F$50 -> 0.0003053341237 | I47: 0 | J47: 0 | K47: 0
A48: 5. 121 - 150 Days | B48: 121 - 150 Days | E48: =IFERROR(VLOOKUP($A48,'[7]Arrears Reporting'!$A$1:$D$8,3,FALSE),0) -> 1 | F48: =IFERROR(VLOOKUP($A48,'[7]Arrears Reporting'!$A$1:$D$8,4,FALSE),0) -> 90943.23 | G48: =F48/F$50 -> 0.0002053021726 | I48: 0 | J48: 0 | K48: 0
A49: 6. 151 - 180 Days | B49: 151 - 180 Days | E49: =IFERROR(VLOOKUP($A49,'[7]Arrears Reporting'!$A$1:$D$8,3,FALSE),0) -> 0 | F49: =IFERROR(VLOOKUP($A49,'[7]Arrears Reporting'!$A$1:$D$8,4,FALSE),0) -> 0 | G49: =F49/F$50 -> 0 | I49: 0 | J49: 0 | K49: 0
B50: Total | E50: =SUM(E44:E49) -> 4503 | F50: =SUM(F44:F49) -> 442972565.1 | G50: =SUM(G44:G49) -> 1 | I50: 4717 | J50: 471298401.8 | K50: 1
A51: NSW | F51: > 30 days | G51: =SUM(G45:G49) -> 0.003644444142 | J51: > 30 days | K51: 0.001077802148
F52: > 60 days | G52: =SUM(G46:G49) -> 0.0005106362963 | J52: > 60 days | K52: 0.0004992968979
F53: >90 days | G53: =SUM(G47:G49) -> 0.0005106362963 | J53: >90 days | K53: 0
A55: VIC | B55: Geographic Distribution
A56: NSW | B56: New South Wales | E56: =F56/F$64 -> 0.3311821488 | F56: =IFERROR(VLOOKUP($A56,'[7]Geographic '!$A$1:$C$10,3,FALSE),0) -> 146704606 | I56: 0.3310356969 | J56: 156016594.9
A57: VIC | B57: Victoria | E57: =F57/F$64 -> 0.2113936899 | F57: =IFERROR(VLOOKUP($A57,'[7]Geographic '!$A$1:$C$10,3,FALSE),0) -> 93641605.04 | I57: 0.2122691463 | J57: 100042109.4
A58: QLD | B58: Queensland | E58: 0.1012445545 | F58: =IFERROR(VLOOKUP($A58,'[7]Geographic '!$A$1:$C$10,3,FALSE),0) -> 44848560.01 | I58: 0.1043584006 | J58: 49183947.42
A59: SA | B59: South Australia | E59: 0.1566560978 | F59: =IFERROR(VLOOKUP($A59,'[7]Geographic '!$A$1:$C$10,3,FALSE),0) -> 69394353.46 | I59: 0.1553797629 | J59: 73230233.94
A60: NT | B60: Northern Territory | E60: 0.0001632195438 | F60: =IFERROR(VLOOKUP($A60,'[7]Geographic '!$A$1:$C$10,3,FALSE),0) -> 72301.78 | I60: 0.0001534097712 | J60: 72301.78
A61: ACT | B61: Australian Capital Territory | E61: 0.000218703928 | F61: =IFERROR(VLOOKUP($A61,'[7]Geographic '!$A$1:$C$10,3,FALSE),0) -> 96879.84 | I61: 0.0002055594495 | J61: 96879.84
A62: TAS | B62: Tasmania | E62: 0.01701746969 | F62: =IFERROR(VLOOKUP($A62,'[7]Geographic '!$A$1:$C$10,3,FALSE),0) -> 7538272.2 | I62: 0.01809203735 | J62: 8526748.29
A63: WA | B63: Western Australia | E63: 0.1821241159 | F63: =IFERROR(VLOOKUP($A63,'[7]Geographic '!$A$1:$C$10,3,FALSE),0) -> 80675986.8 | I63: 0.1785059867 | J63: 84129586.23
B64: Total | E64: =SUM(E56:E63) -> 1 | F64: =SUM(F56:F63) -> 442972565.1 | I64: 1 | J64: 471298401.8
A65: AG | G65: =E13-F64 -> -4.768371582e-07 | K65: 0
A66: CE | B66: Top Industry Distribution
A67: AGRICULTURAL MACHINERY | B67: Agricultural | E67: =F67/F$70 -> 0.9491182301 | F67: =IFERROR(VLOOKUP($A$67,'[7]Top Industry'!$A$1:$C$4,3,FALSE),) -> 420433337 | I67: 0.9456964837 | J67: 445705241.3
A68: CONSTRUCTION EQUIPMENT | B68: Construction | E68: =F68/F$70 -> 0.05088176986 | F68: =IFERROR(VLOOKUP($A$68,'[7]Top Industry'!$A$1:$C$4,3,FALSE),) -> 22539228.11 | I68: 0.05430351632 | J68: 25593160.45
A69: MOTOR VEHICLE - AG | B69: Motor Vehicle AG | E69: =F69/F$70 -> 0 | F69: =IFERROR(VLOOKUP($A$69,'[7]Top Industry'!$A$1:$C$4,3,FALSE),) -> 0 | I69: 0 | J69: 0
B70: Total | E70: =SUM(E67:E69) -> 1 | F70: =SUM(F67:F69) -> 442972565.1 | G70: =F64-F70 -> 0 | I70: 1 | J70: 471298401.8 | K70: 1.25169754e-06
A71: COMBINE
A72: 40-100 HP TRACTOR | B72: Collateral Types
A73: 100<140 HP TRACTOR | B73: 100<140 HP TRACTOR | E73: =IFERROR(F73/F$116,0) -> 0.1052608004 | F73: =IFERROR(VLOOKUP($A73,[7]Collateral!$A$1:$C$43,3,FALSE),"") -> 46627646.74 | I73: 0.1063657288 | J73: 50129997.98
A74: 4 EWD TRACTORS | B74: 4 EWD TRACTORS | E74: 0.09943162131 | F74: =IFERROR(VLOOKUP($A74,[7]Collateral!$A$1:$C$43,3,FALSE),"") -> 44045480.34 | I74: 0.09603969273 | J74: 45263353.69
A75: 40<60 HP TRACTOR | B75: 40<60 HP TRACTOR | E75: 0.01356986329 | F75: =IFERROR(VLOOKUP($A75,[7]Collateral!$A$1:$C$43,3,FALSE),"") -> 6011077.15 | I75: 0.0146646402 | J75: 6911421.49
A76: 4WD Vehicle | B76: 4WD Vehicle | E76: 0.002145995 | F76: =IFERROR(VLOOKUP($A76,[7]Collateral!$A$1:$C$43,3,FALSE),"") -> 950616.91 | I76: 0.002110297035 | J76: 994579.62
A77: 60<100 HP TRACTOR | B77: 60<100 HP TRACTOR | E77: 0.04401010635 | F77: =IFERROR(VLOOKUP($A77,[7]Collateral!$A$1:$C$43,3,FALSE),"") -> 19495269.7 | I77: 0.04529081062 | J77: 21345486.66
A78: BACKHOE | B78: BACKHOE | E78: 0.0006476646244 | F78: =IFERROR(VLOOKUP($A78,[7]Collateral!$A$1:$C$43,3,FALSE),"") -> 286897.66 | I78: 0.0006777505691 | J78: 319422.76
A79: BALERS, WINDROWERS, MOWERS, RAKES | B79: BALERS, WINDROWERS, MOWERS, RAKES | E79: 0.04641457691 | F79: =IFERROR(VLOOKUP($A79,[7]Collateral!$A$1:$C$43,3,FALSE),"") -> 20560384.19 | I79: 0.04804167441 | J79: 22641964.37
A80: COMBINES | B80: COMBINES | E80: 0.2920553591 | F80: =IFERROR(VLOOKUP($A80,[7]Collateral!$A$1:$C$43,3,FALSE),"") -> 129372511.6 | I80: 0.2916977233 | J80: 137476670.8
A81: COMPACT TRACK LOADER | B81: COMPACT TRACK LOADER | E81: 0.006020609627 | F81: =IFERROR(VLOOKUP($A81,[7]Collateral!$A$1:$C$43,3,FALSE),"") -> 2666964.89 | I81: 0.00676140797 | J81: 3186640.77
A82: COMPACT WHEEL LOADER | B82: COMPACT WHEEL LOADER | E82: 0.001166641482 | F82: =IFERROR(VLOOKUP($A82,[7]Collateral!$A$1:$C$43,3,FALSE),"") -> 516790.17 | I82: 0.001214799473 | J82: 572533.05
A83: COTTON PICKERS | B83: COTTON PICKERS | E83: 0.001476276685 | F83: =IFERROR(VLOOKUP($A83,[7]Collateral!$A$1:$C$43,3,FALSE),"") -> 653950.07 | I83: 0.001387549942 | J83: 653950.07
A84: CRAWLER EXCAVATOR | B84: CRAWLER EXCAVATOR | E84: 0.01451734357 | F84: =IFERROR(VLOOKUP($A84,[7]Collateral!$A$1:$C$43,3,FALSE),"") -> 6430784.92 | I84: 0.01474937728 | J84: 6951357.94
A85: CRAWLER DOZER | B85: CRAWLER DOZER | E85: 0.000909013496 | F85: =IFERROR(VLOOKUP($A85,[7]Collateral!$A$1:$C$43,3,FALSE),"") -> 402668.04 | I85: 0.0009294257064 | J85: 438036.85
A86: CULTIVATORS,SEEDERS, HARROWS | B86: CULTIVATORS,SEEDERS, HARROWS | E86: 0.02154421922 | F86: =IFERROR(VLOOKUP($A86,[7]Collateral!$A$1:$C$43,3,FALSE),"") -> 9543498.05 | I86: 0.02077577132 | J86: 9791587.82
A87: DRILL | B87: DRILL | E87: 0.002800896687 | F87: =IFERROR(VLOOKUP($A87,[7]Collateral!$A$1:$C$43,3,FALSE),"") -> 1240720.39 | I87: 0.002675606973 | J87: 1261009.29
A88: DUMP TRUCKS | B88: DUMP TRUCKS | E88: 0 | F88: =IFERROR(VLOOKUP($A88,[7]Collateral!$A$1:$C$43,3,FALSE),"") ->  | I88: 0
A89: EXCAVATORS / GRADERS | B89: EXCAVATORS / GRADERS | E89: 0.0001362102639 | F89: =IFERROR(VLOOKUP($A89,[7]Collateral!$A$1:$C$43,3,FALSE),"") -> 60337.41 | I89: 0.0003820746884 | J89: 180071.19
A90: FEEDERS, MIXERS, WAGONS, BINS, FEED STORAGE | B90: FEEDERS, MIXERS, WAGONS, BINS, FEED STORAGE | E90: 0.0037928676 | F90: =IFERROR(VLOOKUP($A90,[7]Collateral!$A$1:$C$43,3,FALSE),"") -> 1680136.29 | I90: 0.003747903862 | J90: 1766381.1
A91: FRONT END LOADER | B91: FRONT END LOADER | E91: 0.0004939664378 | F91: =IFERROR(VLOOKUP($A91,[7]Collateral!$A$1:$C$43,3,FALSE),"") -> 218813.58 | I91: 0.0005416446333 | J91: 255276.25
A92: FRONTS | B92: FRONTS | E92: 0.0051273602 | F92: =IFERROR(VLOOKUP($A92,[7]Collateral!$A$1:$C$43,3,FALSE),"") -> 2271279.9 | I92: 0.004966527493 | J92: 2340716.47
A93: GRADER | B93: GRADER | E93: 0.0017910155 | F93: =IFERROR(VLOOKUP($A93,[7]Collateral!$A$1:$C$43,3,FALSE),"") -> 793370.73 | I93: 0.001866244606 | J93: 879558.1
A94: HARVESTERS - Other | B94: HARVESTERS - Other | E94: 0.01237448816 | F94: =IFERROR(VLOOKUP($A94,[7]Collateral!$A$1:$C$43,3,FALSE),"") -> 5481558.76 | I94: 0.01270386863 | J94: 5987312.98
A95: IRRIGATION EQUIPMENT | B95: IRRIGATION EQUIPMENT | E95: 0.0007338717014 | F95: =IFERROR(VLOOKUP($A95,[7]Collateral!$A$1:$C$43,3,FALSE),"") -> 325085.03 | I95: 0.0006897647622 | J95: 325085.03
A96: MATERIALS HANDLING EQUIPMENT | B96: MATERIALS HANDLING EQUIPMENT | E96: 0.000653822613 | F96: =IFERROR(VLOOKUP($A96,[7]Collateral!$A$1:$C$43,3,FALSE),"") -> 289625.48 | I96: 0.0008044599527 | J96: 379140.69
A97: MIDI CRAWLER EXCAVATOR | B97: MIDI CRAWLER EXCAVATOR | E97: 0.001362205377 | F97: =IFERROR(VLOOKUP($A97,[7]Collateral!$A$1:$C$43,3,FALSE),"") -> 603419.61 | I97: 0.001738649371 | J97: 819422.67
A98: MINI EXCAVATOR | B98: MINI EXCAVATOR | E98: 0.003954582017 | F98: =IFERROR(VLOOKUP($A98,[7]Collateral!$A$1:$C$43,3,FALSE),"") -> 1751771.34 | I98: 0.004141946997 | J98: 1952093
A99: OTHER AG | B99: OTHER AG | E99: 0.003544523552 | F99: =IFERROR(VLOOKUP($A99,[7]Collateral!$A$1:$C$43,3,FALSE),"") -> 1570126.69 | I99: 0.004343649464 | J99: 2047155.05
A100: OTHER CE | B100: OTHER CE | E100: 0.000156035871 | F100: =IFERROR(VLOOKUP($A100,[7]Collateral!$A$1:$C$43,3,FALSE),"") -> 69119.61 | I100: 0.0001564024824 | J100: 73712.24
A101: OVER 140 HP TRACTOR | B101: OVER 140 HP TRACTOR | E101: 0.2015908701 | F101: =IFERROR(VLOOKUP($A101,[7]Collateral!$A$1:$C$43,3,FALSE),"") -> 89299224.84 | I101: 0.198970827 | J101: 93774632.78
A102: QUAD BIKES | B102: QUAD BIKES | E102: 2.799970241e-05 | F102: =IFERROR(VLOOKUP($A102,[7]Collateral!$A$1:$C$43,3,FALSE),"") -> 12403.1 | I102: 2.943549129e-05 | J102: 13872.9
A103: ROLLER | B103: ROLLER | E103: 0.0005521352094 | F103: =IFERROR(VLOOKUP($A103,[7]Collateral!$A$1:$C$43,3,FALSE),"") -> 244580.75 | I103: 0.0005476267457 | J103: 258095.61
A104: SCRAPERS | B104: SCRAPERS | E104: 0 | F104: =IFERROR(VLOOKUP($A104,[7]Collateral!$A$1:$C$43,3,FALSE),"") ->  | I104: 0
A105: SKID STEER LOADER | B105: SKID STEER LOADER | E105: 0.01066704129 | F105: =IFERROR(VLOOKUP($A105,[7]Collateral!$A$1:$C$43,3,FALSE),"") -> 4725206.64 | I105: 0.01144087434 | J105: 5392065.79
A106: SKIDSTEER / UNILOADER | B106: SKIDSTEER / UNILOADER | E106: 5.125251943e-05 | F106: =IFERROR(VLOOKUP($A106,[7]Collateral!$A$1:$C$43,3,FALSE),"") -> 22703.46 | I106: 0.0001863717544 | J106: 87836.71
A107: Soundproof Generators | B107: Soundproof Generators | E107: 2.577150573e-05 | F107: =IFERROR(VLOOKUP($A107,[7]Collateral!$A$1:$C$43,3,FALSE),"") -> 11416.07 | I107: 2.736686556e-05 | J107: 12897.96
A108: SPRAYING EQUIPMENT | B108: SPRAYING EQUIPMENT | E108: 0.08252869882 | F108: =IFERROR(VLOOKUP($A108,[7]Collateral!$A$1:$C$43,3,FALSE),"") -> 36557949.41 | I108: 0.08035973154 | J108: 37873413.04
A109: Sugar Cane Harvesters | B109: Sugar Cane Harvesters | E109: 0.001365189377 | F109: =IFERROR(VLOOKUP($A109,[7]Collateral!$A$1:$C$43,3,FALSE),"") -> 604741.44 | I109: 0.001400389663 | J109: 660001.41
A110: Telehandlers | B110: Telehandlers | E110: 0.00600717927 | F110: =IFERROR(VLOOKUP($A110,[7]Collateral!$A$1:$C$43,3,FALSE),"") -> 2661015.61 | I110: 0.005872383483 | J110: 2767644.95
A111: TRAILER - on Farm | B111: TRAILER - on Farm | E111: 0.00050160059 | F111: =IFERROR(VLOOKUP($A111,[7]Collateral!$A$1:$C$43,3,FALSE),"") -> 222195.3 | I111: 0.0005353377585 | J111: 252303.83
A112: TRUCK - on Farm | B112: TRUCK - on Farm | E112: 0.0001145393282 | F112: =IFERROR(VLOOKUP($A112,[7]Collateral!$A$1:$C$43,3,FALSE),"") -> 50737.78 | I112: 0.000119557036 | J112: 56347.04
A113: UNDER 40 HP TRACTORS | B113: UNDER 40 HP TRACTORS | E113: 0.002179588887 | F113: =IFERROR(VLOOKUP($A113,[7]Collateral!$A$1:$C$43,3,FALSE),"") -> 965498.08 | I113: 0.002338600674 | J113: 1102178.76
A114: WHEEL LOADERS | B114: WHEEL LOADERS | E114: 0.008226468267 | F114: =IFERROR(VLOOKUP($A114,[7]Collateral!$A$1:$C$43,3,FALSE),"") -> 3644099.75 | I114: 0.008456583377 | J114: 3985574.23
A115: WHEEL LOADERS (OLD) | B115: WHEEL LOADERS (OLD) | E115: 6.972813315e-05 | F115: =IFERROR(VLOOKUP($A115,[7]Collateral!$A$1:$C$43,3,FALSE),"") -> 30887.65 | I115: 0.0002495210032 | J115: 117598.85
B116: Total | E116: =SUM(E73:E114) -> 0.9999302719 | F116: =SUM(F73:F115) -> 442972565.1 | G116: =F70-F116 -> 0 | I116: 0.999750479 | J116: 471298401.8 | K116: -1.311302185e-06
A117: $ 0 - $25,000
A118: $ 25,001 to $50,000 | B118: Contract Balance Distribution
A119: $0 - $25,000 | B119: $ 0 - $25,000 | E119: =IFERROR(F119/F$130,0) -> 0.03503356628 | F119: =IFERROR(VLOOKUP($A119,'[7] Balance Distribution'!$A$1:$C$17,3,FALSE),"") -> 15518908.72 | I119: 0.03340073731 | J119: 15741714.11
A120: $25,001 - $50,000 | B120: $ 25,001 to $50,000 | E120: =IFERROR(F120/F$130,0) -> 0.0865144988 | F120: =IFERROR(VLOOKUP($A120,'[7] Balance Distribution'!$A$1:$C$17,3,FALSE),"") -> 38323549.45 | I120: 0.08553995403 | J120: 40314843.62
A121: $50,001 - $75,000 | B121: $ 50,001 to $75,000 | E121: 0.07850873 | F121: =IFERROR(VLOOKUP($A121,'[7] Balance Distribution'!$A$1:$C$17,3,FALSE),"") -> 34777213.51 | I121: 0.0803430002 | J121: 37865527.59
A122: $75,001 - $100,000 | B122: $ 75,001 to $100,000 | E122: 0.07148472494 | F122: =IFERROR(VLOOKUP($A122,'[7] Balance Distribution'!$A$1:$C$17,3,FALSE),"") -> 31665771.97 | I122: 0.07182444721 | J122: 33850747.18
A123: $100,001 - $125,000 | B123: $100,001 to $125,000 | E123: 0.06671857481 | F123: =IFERROR(VLOOKUP($A123,'[7] Balance Distribution'!$A$1:$C$17,3,FALSE),"") -> 29554498.22 | I123: 0.06581295515 | J123: 31017540.58
A124: $125,001 - $150,000 | B124: $125,001 to $150,000 | E124: 0.06574020067 | F124: =IFERROR(VLOOKUP($A124,'[7] Balance Distribution'!$A$1:$C$17,3,FALSE),"") -> 29121105.32 | I124: 0.06262982995 | J124: 29517338.76
A125: $150,001 - $200,000 | B125: $150,000 to $200,000 | E125: 0.1168331042 | F125: =IFERROR(VLOOKUP($A125,'[7] Balance Distribution'!$A$1:$C$17,3,FALSE),"") -> 51753859.87 | I125: 0.118308671 | J125: 55758687.58
A126: $200,001 - $300,000 | B126: $200,001 to $300,000 | E126: 0.1738988001 | F126: =IFERROR(VLOOKUP($A126,'[7] Balance Distribution'!$A$1:$C$17,3,FALSE),"") -> 77032397.56 | I126: 0.1733124707 | J126: 81681890.47
A127: $300,001 - $400,000 | B127: $300,001 to $400,000 | E127: 0.1200847433 | F127: =IFERROR(VLOOKUP($A127,'[7] Balance Distribution'!$A$1:$C$17,3,FALSE),"") -> 53194246.76 | I127: 0.1143465787 | J127: 53891359.78
A128: $400,001 - $500,000 | B128: $400,001 to $500,000 | E128: 0.07643114928 | F128: =IFERROR(VLOOKUP($A128,'[7] Balance Distribution'!$A$1:$C$17,3,FALSE),"") -> 33856902.25 | I128: 0.07360973761 | J128: 34692151.69
A129: $500,001+ | B129: $500,000+ | E129: 0.1087519076 | F129: =IFERROR(VLOOKUP($A129,'[7] Balance Distribution'!$A$1:$C$17,3,FALSE),"") -> 48174111.45 | I129: 0.1208716181 | J129: 56966600.41
A130: $200,001 to $300,000 | B130: Total | E130: =SUM(E119:E129) -> 1 | F130: =SUM(F119:F129) -> 442972565.1 | G130: =F116-F130 -> 0 | I130: 1 | J130: 471298401.8 | K130: 0
A131: 0
A132: 0 to 5 | B132: Residual / Balloon Payment Distribution
A133: 0 | B133: 0 | E133: =IFERROR(F133/F$143,0) -> 0.8468490725 | F133: =IFERROR(VLOOKUP($A133,'[7]Residual '!$A$1:$C$14,3,FALSE),"") -> 375130905.9 | I133: 0.8436329591 | J133: 397602865.3
A134: 0 to 5 | B134: 0 to 5 | E134: =IFERROR(F134/F$143,0) -> 7.549923548e-05 | F134: =IFERROR(VLOOKUP($A134,'[7]Residual '!$A$1:$C$14,3,FALSE),"") -> 33444.09 | I134: 5.255292593e-05 | J134: 24768.11
A135: 6 to 10 | B135: 06 to 10 | E135: 0.001744477245 | F135: =IFERROR(VLOOKUP($A135,'[7]Residual '!$A$1:$C$14,3,FALSE),"") -> 772755.56 | I135: 0.002010760776 | J135: 947668.34
A136: 11 to 15 | B136: 11 to 15 | E136: 0.008083268383 | F136: =IFERROR(VLOOKUP($A136,'[7]Residual '!$A$1:$C$14,3,FALSE),"") -> 3580666.13 | I136: 0.007961046369 | J136: 3752028.43
A137: 16 to 20 | B137: 16 to 20 | E137: 0.01621595276 | F137: =IFERROR(VLOOKUP($A137,'[7]Residual '!$A$1:$C$14,3,FALSE),"") -> 7183222.19 | I137: 0.01632922906 | J137: 7695939.56
A138: 21 to 25 | B138: 21 to 25 | E138: 0.02191934527 | F138: =IFERROR(VLOOKUP($A138,'[7]Residual '!$A$1:$C$14,3,FALSE),"") -> 9709668.6 | I138: 0.02191436228 | J138: 10328203.92
A139: 26 to 30 | B139: 26 to 30 | E139: 0.04608846075 | F139: =IFERROR(VLOOKUP($A139,'[7]Residual '!$A$1:$C$14,3,FALSE),"") -> 20415923.68 | I139: 0.04702420241 | J139: 22162431.44
A140: 31 to 35 | B140: 31 to 35 | E140: 0.01823059563 | F140: =IFERROR(VLOOKUP($A140,'[7]Residual '!$A$1:$C$14,3,FALSE),"") -> 8075653.71 | I140: 0.01799819027 | J140: 8482518.31
A141: 36 to 40 | B141: 36 to 40 | E141: 0.02897472375 | F141: =IFERROR(VLOOKUP($A141,'[7]Residual '!$A$1:$C$14,3,FALSE),"") -> 12835007.7 | I141: 0.02889348215 | J141: 13617451.96
A142: 41+ % | B142: 41+% | E142: 0.01181860443 | F142: =IFERROR(VLOOKUP($A142,'[7]Residual '!$A$1:$C$14,3,FALSE),"") -> 5235317.52 | I142: 0.01418321468 | J142: 6684526.41
E143: =SUM(E133:E142) -> 1 | F143: =SUM(F133:F142) -> 442972565.1 | G143: =F130-F143 -> 0 | I143: 1 | J143: 471298401.8 | K143: 1.072883606e-06
A144: 2004 Q1
A145: 2004 Q2 | B145: Quarter of Maturity Distribution
A146: =RIGHT(B146,2)&LEFT(B146,4) -> Q32020 | B146: 2020Q3 | E146: =F146/F$174 -> 0 | F146: =IFERROR(VLOOKUP($A146,'[7]Quarter of Maturity Dist'!$A$1:$C$27,3,FALSE),0) -> 0 | I146: 0 | J146: 0
A147: Q42020 | B147: 2020Q4 | E147: 0 | F147: =IFERROR(VLOOKUP($A147,'[7]Quarter of Maturity Dist'!$A$1:$C$27,3,FALSE),0) -> 0 | I147: 0 | J147: 0
A148: Q12021 | B148: 2021Q1 | E148: 0 | F148: =IFERROR(VLOOKUP($A148,'[7]Quarter of Maturity Dist'!$A$1:$C$27,3,FALSE),0) -> 0 | I148: 0 | J148: 0
A149: Q22021 | B149: 2021Q2 | E149: 0.0002053021726 | F149: =IFERROR(VLOOKUP($A149,'[7]Quarter of Maturity Dist'!$A$1:$C$27,3,FALSE),0) -> 90943.23 | I149: 0.0002278346152 | J149: 107378.09
A150: Q32021 | B150: 2021Q3 | E150: 9.507582031e-05 | F150: =IFERROR(VLOOKUP($A150,'[7]Quarter of Maturity Dist'!$A$1:$C$27,3,FALSE),0) -> 42115.98 | I150: 0.003086309872 | J150: 1454572.91
A151: Q42021 | B151: 2021Q4 | E151: 0.002681307294 | F151: =IFERROR(VLOOKUP($A151,'[7]Quarter of Maturity Dist'!$A$1:$C$27,3,FALSE),0) -> 1187745.57 | I151: 0.005438397139 | J151: 2563107.88
A152: Q12022 | B152: 2022Q1 | E152: 0.01133818109 | F152: =IFERROR(VLOOKUP($A152,'[7]Quarter of Maturity Dist'!$A$1:$C$27,3,FALSE),0) -> 5022503.16 | I152: 0.01151055773 | J152: 5424907.46
A153: Q22022 | B153: 2022Q2 | E153: 0.008036429252 | F153: =IFERROR(VLOOKUP($A153,'[7]Quarter of Maturity Dist'!$A$1:$C$27,3,FALSE),0) -> 3559917.68 | I153: 0.009161952627 | J153: 4318013.63
A154: Q32022 | B154: 2022Q3 | E154: 0.002510829378 | F154: =IFERROR(VLOOKUP($A154,'[7]Quarter of Maturity Dist'!$A$1:$C$27,3,FALSE),0) -> 1112228.53 | I154: 0.003080119526 | J154: 1451655.41
A155: Q42022 | B155: 2022Q4 | E155: 0.01470161345 | F155: =IFERROR(VLOOKUP($A155,'[7]Quarter of Maturity Dist'!$A$1:$C$27,3,FALSE),0) -> 6512411.42 | I155: 0.01591614067 | J155: 7501251.66
A156: Q12023 | B156: 2023Q1 | E156: 0.02846649909 | F156: =IFERROR(VLOOKUP($A156,'[7]Quarter of Maturity Dist'!$A$1:$C$27,3,FALSE),0) -> 12609878.12 | I156: 0.02825287627 | J156: 13315535.43
A157: Q22023 | B157: 2023Q2 | E157: 0.02720028604 | F157: =IFERROR(VLOOKUP($A157,'[7]Quarter of Maturity Dist'!$A$1:$C$27,3,FALSE),0) -> 12048980.48 | I157: 0.0285088399 | J157: 13436170.68
A158: Q32023 | B158: 2023Q3 | E158: 0.01862372375 | F158: =IFERROR(VLOOKUP($A158,'[7]Quarter of Maturity Dist'!$A$1:$C$27,3,FALSE),0) -> 8249798.68 | I158: 0.02239105707 | J158: 10552869.41
A159: Q42023 | B159: 2023Q4 | E159: 0.04892144094 | F159: =IFERROR(VLOOKUP($A159,'[7]Quarter of Maturity Dist'!$A$1:$C$27,3,FALSE),0) -> 21670856.18 | I159: 0.04952175662 | J159: 23339524.75
A160: Q12024 | B160: 2024Q1 | E160: 0.1161837219 | F160: =IFERROR(VLOOKUP($A160,'[7]Quarter of Maturity Dist'!$A$1:$C$27,3,FALSE),0) -> 51466201.3 | I160: 0.1145144528 | J160: 53970478.59
A161: Q22024 | B161: 2024Q2 | E161: 0.08442434566 | F161: =IFERROR(VLOOKUP($A161,'[7]Quarter of Maturity Dist'!$A$1:$C$27,3,FALSE),0) -> 37397668.95 | I161: 0.08307603075 | J161: 39153600.52
A162: Q32024 | B162: 2024Q3 | E162: 0.029076144 | F162: =IFERROR(VLOOKUP($A162,'[7]Quarter of Maturity Dist'!$A$1:$C$27,3,FALSE),0) -> 12879934.09 | I162: 0.0302183068 | J162: 14241839.7
A163: Q42024 | B163: 2024Q4 | E163: 0.03858298621 | F163: =IFERROR(VLOOKUP($A163,'[7]Quarter of Maturity Dist'!$A$1:$C$27,3,FALSE),0) -> 17091204.37 | I163: 0.03847016682 | J163: 18130928.14
A164: Q12025 | B164: 2025Q1 | E164: 0.1221746381 | F164: =IFERROR(VLOOKUP($A164,'[7]Quarter of Maturity Dist'!$A$1:$C$27,3,FALSE),0) -> 54120012.81 | I164: 0.1178161219 | J164: 55526549.94
A165: Q22025 | B165: 2025Q2 | E165: 0.1149274559 | F165: =IFERROR(VLOOKUP($A165,'[7]Quarter of Maturity Dist'!$A$1:$C$27,3,FALSE),0) -> 50909709.95 | I165: 0.1127537882 | J165: 53140680.16
A166: Q32025 | B166: 2025Q3 | E166: 0.07235165718 | F166: =IFERROR(VLOOKUP($A166,'[7]Quarter of Maturity Dist'!$A$1:$C$27,3,FALSE),0) -> 32049799.17 | I166: 0.07323749179 | J166: 34516712.83
A167: Q42025 | B167: 2025Q4 | E167: 0.1120640676 | F167: =IFERROR(VLOOKUP($A167,'[7]Quarter of Maturity Dist'!$A$1:$C$27,3,FALSE),0) -> 49641307.48 | I167: 0.110044064 | J167: 51863591.49
A168: Q12026 | B168: 2026Q1 | E168: 0.1294158921 | F168: =IFERROR(VLOOKUP($A168,'[7]Quarter of Maturity Dist'!$A$1:$C$27,3,FALSE),0) -> 57327689.67 | I168: 0.1246526251 | J168: 58748582.97
A169: Q22026 | B169: 2026Q2 | E169: 0.008117252407 | F169: =IFERROR(VLOOKUP($A169,'[7]Quarter of Maturity Dist'!$A$1:$C$27,3,FALSE),0) -> 3595720.12 | I169: 0.008593143653 | J169: 4049934.87
A170: Q32026 | B170: 2026Q3 | E170: 0.001859481907 | F170: =IFERROR(VLOOKUP($A170,'[7]Quarter of Maturity Dist'!$A$1:$C$27,3,FALSE),0) -> 823699.47 | I170: 0.001942542721 | J170: 915517.28
A171: Q42026 | B171: 2026Q4 | E171: 0.002131363823 | F171: =IFERROR(VLOOKUP($A171,'[7]Quarter of Maturity Dist'!$A$1:$C$27,3,FALSE),0) -> 944135.7 | I171: 0.002019007568 | J171: 951555.04
A172: Q12027 | B172: 2027Q1 | E172: 0.005910305008 | F172: =IFERROR(VLOOKUP($A172,'[7]Quarter of Maturity Dist'!$A$1:$C$27,3,FALSE),0) -> 2618102.97 | I172: 0.005566415927 | J172: 2623442.93
E174: =SUM(E146:E172) -> 1 | F174: =SUM(F146:F172) -> 442972565.1 | G174: =F143-F174 -> 0 | I174: 1 | J174: 471298401.8 | K174: -1.072883606e-06
A175: 0 to 6 months
A176: 07 to 12 months | B176: Seasoning Distribution
A177: 0 to 6 months | B177: 0 to 6 months | E177: =F177/F$188 -> 0 | F177: =IFERROR(VLOOKUP($A177,'[7]Seasoning Distribution'!$A$1:$C$12,3,FALSE),0) -> 0 | I177: 0.1306373353 | J177: 61569167.32
A178: 07 to 12 months | B178: 07 to 12 months | E178: =F178/F$188 -> 0.3328618539 | F178: =IFERROR(VLOOKUP($A178,'[7]Seasoning Distribution'!$A$1:$C$12,3,FALSE),0) -> 147448669.2 | I178: 0.4020438317 | J178: 189482615.3
A179: 13 to 18 months | B179: 13 to 18 months | E179: 0.4038473418 | F179: =IFERROR(VLOOKUP($A179,'[7]Seasoning Distribution'!$A$1:$C$12,3,FALSE),0) -> 178893292.9 | I179: 0.2087159331 | J179: 98367485.69
A180: 19 to 24 months | B180: 19 to 24 months | E180: 0.01186968423 | F180: =IFERROR(VLOOKUP($A180,'[7]Seasoning Distribution'!$A$1:$C$12,3,FALSE),0) -> 5257944.47 | I180: 0 | J180: 0
A181: 25 to 30 months | B181: 25 to 30 months | E181: 0.08076508664 | F181: =IFERROR(VLOOKUP($A181,'[7]Seasoning Distribution'!$A$1:$C$12,3,FALSE),0) -> 35776717.6 | I181: 0.1607241082 | J181: 75749015.34
A182: 31 to 36 months | B182: 31 to 36 months | E182: 0.160214952 | F182: =IFERROR(VLOOKUP($A182,'[7]Seasoning Distribution'!$A$1:$C$12,3,FALSE),0) -> 70970828.23 | I182: 0.09352767184 | J182: 44079442.26
A183: 37 to 42 months | B183: 37 to 42 months | E183: 0.009032143242 | F183: =IFERROR(VLOOKUP($A183,'[7]Seasoning Distribution'!$A$1:$C$12,3,FALSE),0) -> 4000991.66 | I183: 0.0005800903397 | J183: 273395.65
A184: 43 to 48 months | B184: 43 to 48 months | E184: 0 | F184: =IFERROR(VLOOKUP($A184,'[7]Seasoning Distribution'!$A$1:$C$12,3,FALSE),0) -> 0 | I184: 0 | J184: 0
A185: 49 to 54 months | B185: 49 to 54 months | E185: 0 | F185: =IFERROR(VLOOKUP($A185,'[7]Seasoning Distribution'!$A$1:$C$12,3,FALSE),0) -> 0 | I185: 0.0001696503313 | J185: 79955.93
A186: 55 to 60 months | B186: 55 to 60 months | E186: 0.0004283782675 | F186: =IFERROR(VLOOKUP($A186,'[7]Seasoning Distribution'!$A$1:$C$12,3,FALSE),0) -> 189759.82 | I186: 0.003566507702 | J186: 1680889.38
A187: 60+ months | B187: 61 to 72 months | E187: 0.000980559981 | F187: =IFERROR(VLOOKUP($A187,'[7]Seasoning Distribution'!$A$1:$C$12,3,FALSE),0) -> 434361.17 | I187: 3.487145286e-05 | J187: 16434.86
A188: 61 to 72 months | B188: Total | E188: =SUM(E177:E187) -> 1 | F188: =SUM(F177:F187) -> 442972565.1 | G188: =F174-F188 -> 0 | I188: 1 | J188: 471298401.8 | K188: 0
B190: Remaining Term Distribution
A191: 0 - 12 months | B191: 0-12 Months | E191: =F191/F$197 -> 0.03043633702 | F191: =IFERROR(VLOOKUP($A191,'[7]Remaining Term'!$A$1:$C$10,3,FALSE),0) -> 13482462.28 | I191: 0.03174207248 | J191: 14959988.03
A192: 13 - 24 months | B192: 13-24 Months | E192: =F192/F$197 -> 0.09448148398 | F192: =IFERROR(VLOOKUP($A192,'[7]Remaining Term'!$A$1:$C$10,3,FALSE),0) -> 41852705.31 | I192: 0.08338254953 | J192: 39298062.33
A193: 25 - 36 months | B193: 25-36 Months | E193: 0.285540271 | F193: =IFERROR(VLOOKUP($A193,'[7]Remaining Term'!$A$1:$C$10,3,FALSE),0) -> 126486506.3 | I193: 0.2816775032 | J193: 132754157.1
A194: 37 - 48 months | B194: 37-48 Months | E194: 0.3908708213 | F194: =IFERROR(VLOOKUP($A194,'[7]Remaining Term'!$A$1:$C$10,3,FALSE),0) -> 173145050.3 | I194: 0.3116360462 | J194: 146873570.5
A195: 49 - 60 months | B195: 49-60 Months | E195: 0.1909206575 | F195: =IFERROR(VLOOKUP($A195,'[7]Remaining Term'!$A$1:$C$10,3,FALSE),0) -> 84572613.38 | I195: 0.282808696 | J195: 133287286.4
A196: 60+ Months | B196: 60+ Months | E196: 0.007750429148 | F196: =IFERROR(VLOOKUP($A196,'[7]Remaining Term'!$A$1:$C$10,3,FALSE),0) -> 3433227.48 | I196: 0.008753132547 | J196: 4125337.38
E197: =SUM(E191:E196) -> 1 | F197: =SUM(F191:F196) -> 442972565.1 | G197: =F188-F197 -> 5.36441803e-07 | I197: 1 | J197: 471298401.8 | K197: -5.36441803e-07
B199: Origination LVR Distribution
A200: 01. 10% to 20% | B200: 10% to 20% | E200: =F200/F$216 -> 0.0003489830572 | F200: =IFERROR(VLOOKUP($A200,'[7]LVR Band'!$A$1:$C$18,3,FALSE),0) -> 154589.92 | I200: 0.000328008581 | J200: 154589.92
A201: 02. 21% to 30% | B201: 21% to 30% | E201: 0.003622150572 | F201: =IFERROR(VLOOKUP($A201,'[7]LVR Band'!$A$1:$C$18,3,FALSE),0) -> 1604513.33 | I201: 0.003744282759 | J201: 1764674.48
A202: 03. 31% to 40% | B202: 31% to 40% | E202: 0.01667637335 | F202: =IFERROR(VLOOKUP($A202,'[7]LVR Band'!$A$1:$C$18,3,FALSE),0) -> 7387175.88 | I202: 0.01632930008 | J202: 7695973.03
A203: 04. 41% to 50% | B203: 41% to 50% | E203: 0.06833501006 | F203: =IFERROR(VLOOKUP($A203,'[7]LVR Band'!$A$1:$C$18,3,FALSE),0) -> 30270534.69 | I203: 0.06701630411 | J203: 31584677.02
A204: 05. 51% to 60% | B204: 51% to 60% | E204: 0.1051731032 | F204: =IFERROR(VLOOKUP($A204,'[7]LVR Band'!$A$1:$C$18,3,FALSE),0) -> 46588799.28 | I204: 0.1036800352 | J204: 48864234.87
A205: 06. 61% to 70% | B205: 61% to 70% | E205: 0.1613614527 | F205: =IFERROR(VLOOKUP($A205,'[7]LVR Band'!$A$1:$C$18,3,FALSE),0) -> 71478696.59 | I205: 0.1603415659 | J205: 75568723.76
A206: 07. 71% to 80% | B206: 71% to 80% | E206: 0.1796415027 | F206: =IFERROR(VLOOKUP($A206,'[7]LVR Band'!$A$1:$C$18,3,FALSE),0) -> 79576257.26 | I206: 0.1780320605 | J206: 83906225.56
A207: 08. 81% to 90% | B207: 81% to 90% | E207: 0.2099792818 | F207: =IFERROR(VLOOKUP($A207,'[7]LVR Band'!$A$1:$C$18,3,FALSE),0) -> 93015061.08 | I207: 0.2106868176 | J207: 99296360.42
A208: 09. 91% to 100% | B208: 91% to 100% | E208: 0.2548621426 | F208: =IFERROR(VLOOKUP($A208,'[7]LVR Band'!$A$1:$C$18,3,FALSE),0) -> 112896937 | I208: 0.2598416253 | J208: 122462942.7
A209: > 100% | B209: > 100% | E209: 0 | F209: =IFERROR(VLOOKUP($A209,'[7]LVR Band'!$A$1:$C$18,3,FALSE),0) -> 0 | I209: 0 | J209: 0
E210: =SUM(E200:E209) -> 1 | F210: =SUM(F200:F209) -> 442972565.1 | G210: =F197-F210 -> 0 | I210: 1 | J210: 471298401.8 | K210: 0
B212: New v Used
A213: New | B213: New | E213: =F213/F$216 -> 0.8441960169 | F213: =IFERROR(VLOOKUP($A213,'[7]New v Used'!$A$1:$C$9,3,FALSE),0) -> 373955675 | I213: 0.8422590003 | J213: 396955320.7
... 38 more rows
